bitfinex/quotes_ETHUSD_20240924
["timestamp","ask_amount","ask_price","bid_price","bid_amount"]
[1727196612966,3.80706,2626.7,2626.5,0.0378395]
[1727196613167,0.7604,2626.8,2626.5,0.0378395]
[1727196613875,3.80706,2626.7,2626.5,0.0378395]
[1727196614073,0.85558127,2626.8,2626.5,0.0378395]
[1727196614246,4.66258127,2626.8,2626.5,0.0378395]
[1727196614957,4.5674,2626.8,2626.5,0.0378395]
[1727196615337,3.8072,2626.6,2626.5,0.0378395]
[1727196620526,4.6003,2626.6,2626.5,0.0378395]
[1727196620826,4.69549739,2626.6,2626.5,0.0378395]
[1727196620998,4.6003,2626.6,2626.5,0.0378395]
[1727196622127,3.80678,2626.9,2626.5,0.0378395]
[1727196622289,0.7931,2627.0,2626.5,3.8450795]
[1727196622622,0.7931,2627.0,2626.5,0.0378395]
[1727196622623,3.80691,2626.8,2626.5,0.0378395]
[1727196623199,3.80689,2626.9,2626.5,0.0378395]
[1727196623402,7.61378,2626.9,2626.5,0.0378395]
[1727196623599,3.80691,2626.8,2626.5,0.0378395]
[1727196624007,3.80689,2626.9,2626.5,0.0378395]
[1727196624207,0.09518075,2626.8,2626.5,0.0378395]
[1727196624413,3.80687,2626.9,2626.5,0.0378395]
[1727196624821,7.61373,2626.9,2626.5,0.0378395]
[1727196625026,3.80686,2626.9,2626.5,0.0378395]
[1727196626287,3.80655,2627.1,2626.6,3.80719]
[1727196626493,3.80655,2627.1,2626.6,3.80713]
[1727196626835,3.8067,2627.0,2626.5,3.0378395]
[1727196627133,3.80655,2627.1,2626.6,3.80712]
[1727196627628,7.61312,2627.1,2626.6,3.80712]
[1727196627834,3.80655,2627.1,2626.6,3.80712]
[1727196628033,7.61313,2627.1,2626.6,3.80712]
[1727196628207,3.80655,2627.1,2626.6,3.80712]
[1727196628405,3.80655,2627.1,2626.5,3.0378395]
[1727196628594,3.80655,2627.1,2626.6,3.80717]
[1727196631430,0.7931,2627.3,2626.7,3.80705]
[1727196631608,11.18581,2627.6,2627.1,3.80634]
[1727196631806,11.18581,2627.6,2626.9,3.80667]
[1727196632121,3.80593,2627.5,2627.0,3.80649]
[1727196632325,7.61192,2627.5,2627.0,3.80649]
[1727196632539,9.190952,2627.5,2627.0,3.80649]
[1727196632689,9.190912,2627.5,2627.0,3.80649]
[1727196633529,9.190922,2627.5,2627.0,3.80649]
[1727196634094,5.384932,2627.5,2627.0,3.80649]
[1727196634539,5.384932,2627.5,2626.8,4.6036]
[1727196634743,3.80609,2627.4,2626.9,3.80675]
[1727196634900,3.80605,2627.4,2627.0,3.80661]
[1727196635116,5.384932,2627.5,2627.0,3.80661]
[1727196635321,9.190942,2627.5,2627.0,3.80661]
[1727196635656,3.80604,2627.4,2627.0,3.80661]
[1727196635853,3.80593,2627.5,2627.0,3.80661]
[1727196638566,0.7981,2627.7,2627.3,3.80607]
[1727196638764,4.60292172,2627.8,2627.3,3.80607]
[1727196638765,7.38,2628.0,2627.5,3.80578]
[1727196639061,3.80474,2628.3,2627.8,3.80539]
[1727196639366,5.8987988,2628.3,2627.8,7.61078]
[1727196639657,3.80474,2628.3,2627.8,3.80539]
[1727196640029,4.60279,2628.4,2627.8,3.80538]
[1727196640230,4.60279,2628.4,2627.9,3.80523]
[1727196640435,3.80469,2628.4,2627.8,3.80538]
[1727196640635,3.80469,2628.4,2627.8,7.61076]
[1727196640830,3.80513,2628.1,2627.6,7.61132]
[1727196641060,3.80513,2628.1,2627.6,3.80566]
[1727196641866,4.60284,2628.3,2627.0,0.7967]
[1727196641867,4.06922766,2628.0,2627.0,0.7967]
[1727196642034,3.806,2627.5,2626.7,0.7967]
[1727196642219,3.806,2627.5,2627.0,7.61305]
[1727196642435,4.60381,2627.7,2627.2,4.60295]
[1727196642671,3.80584,2627.6,2627.1,3.80637]
[1727196642867,4.646805,2627.6,2627.1,3.80637]
[1727196643053,0.840965,2627.6,2627.2,3.80632]
[1727196644074,4.646715,2627.6,2627.2,3.80632]
[1727196644288,0.840965,2627.6,2627.2,3.80632]
[1727196646448,0.840965,2627.6,2627.2,7.61257]
[1727196646835,0.840965,2627.6,2627.2,3.80625]
[1727196647544,0.840965,2627.6,2627.3,3.80618]
[1727196649083,0.7981,2627.7,2627.5,3.80586]
[1727196649252,0.7932,2627.9,2627.5,3.80586]
[1727196649448,0.7932,2627.9,2626.9,0.7967]
[1727196649449,0.0951476,2627.8,2626.9,0.7967]
[1727196649654,0.86671654,2627.8,2627.3,3.80617]
[1727196649845,4.67217654,2627.8,2627.3,3.80617]
[1727196650636,4.67217654,2627.8,2627.3,7.61226]
[1727196650835,0.86671654,2627.8,2627.3,3.80607]
[1727196651054,1.00681983,2627.7,2627.3,3.80607]
[1727196651255,1.00681983,2627.7,2627.4,3.80602]
[1727196651779,1.59064172,2627.9,2627.5,3.8058]
[1727196652079,0.7932,2627.9,2627.5,3.80588]
[1727196652446,0.7932,2627.9,2627.6,3.80568]
[1727196652843,0.7932,2627.9,2627.4,3.8059]
[1727196653044,4.59853,2627.9,2627.3,3.80613]
[1727196653237,5.51865817,2627.9,2627.4,3.80594]
[1727196655753,5.51865817,2627.9,2627.3,3.80613]
[1727196655754,1.71332817,2627.9,2627.7,3.80559]
[1727196656071,0.7932,2627.9,2627.6,3.80575]
[1727196656270,0.7932,2628.1,2627.4,3.80594]
[1727196656580,0.7932,2628.1,2627.9,3.80531]
[1727196656963,1.33273817,2628.1,2627.9,3.80531]
[1727196657146,1.59064172,2628.4,2628.1,3.80497]
[1727196657345,1.59064172,2628.4,2627.8,0.7915]
[1727196657346,0.7932,2628.4,2628.0,3.80516]
[1727196657561,1.01668483,2628.3,2628.0,3.80516]
[1727196658384,1.01668483,2628.3,2627.9,3.80528]
[1727196658545,0.64120165,2628.2,2627.9,3.80528]
[1727196658882,1.01668483,2628.3,2628.0,3.8051]
[1727196660294,1.01668483,2628.3,2627.9,3.80531]
[1727196660993,1.01668483,2628.3,2628.0,3.80507]
[1727196661508,0.7932,2628.4,2627.7,3.17598611]
[1727196661667,1.60604172,2628.7,2628.4,3.80448]
[1727196661865,4.61276,2628.7,2628.2,3.80478]
[1727196662460,5.41020172,2628.7,2628.2,3.80478]
[1727196662906,4.61276,2628.7,2628.2,7.60959]
[1727196663539,0.8086,2628.7,2628.3,3.80465]
[1727196665070,2.16723344,2628.7,2628.3,3.80465]
[1727196667395,2.96467516,2628.7,2628.3,3.80465]
[1727196667558,2.16723344,2628.7,2628.3,3.80465]
[1727196669602,0.8086,2628.7,2628.3,3.80465]
[1727196670487,5.41021172,2628.7,2628.2,7.31233156]
[1727196670798,1.60604172,2628.7,2628.2,3.50753156]
[1727196671103,1.60604172,2628.7,2628.3,3.80467]
[1727196671860,5.41020172,2628.7,2628.3,3.80467]
[1727196672056,1.04104282,2628.6,2628.3,3.80467]
[1727196673812,1.04104282,2628.6,2628.4,3.80459]
[1727196674119,1.60604172,2628.7,2628.2,3.80486]
[1727196674304,0.79744172,2628.6,2628.3,3.80472]
[1727196675123,5.41022172,2628.7,2628.2,7.60965]
[1727196675315,1.37832437,2628.6,2628.2,7.60965]
[1727196675614,1.37832437,2628.6,2628.3,3.80472]
[1727196676013,1.37832437,2628.6,2628.3,3.80462]
[1727196676190,0.8086,2628.7,2628.4,3.80447]
[1727196676373,0.8086,2628.7,2628.3,3.80466]
[1727196676586,0.8086,2628.7,2628.4,3.80459]
[1727196676920,1.46923783,2628.7,2628.4,3.80459]
[1727196677280,1.46923783,2628.7,2628.3,3.80472]
[1727196679063,1.46923783,2628.7,2628.4,3.80457]
[1727196679330,1.46923783,2628.7,2628.5,3.8044]
[1727196679924,1.46923783,2628.7,2628.4,3.80459]
[1727196681095,0.79744172,2628.9,2628.5,3.80433]
[1727196681299,13.17442297,2629.3,2628.6,0.07608524]
[1727196681300,1.60604172,2629.2,2628.6,0.07608524]
[1727196681555,1.5949614,2629.4,2629.2,3.80343]
[1727196681556,0.79744172,2629.4,2629.2,3.80343]
[1727196681828,1.6328009,2629.7,2629.5,3.80298]
[1727196681829,0.83528122,2629.7,2629.5,3.80298]
[1727196682037,0.83528122,2629.7,2629.6,3.80285]
[1727196682326,0.0378395,2629.7,2629.6,3.80285]
[1727196684659,0.0378395,2629.7,2629.6,4.56715]
[1727196684873,0.0378395,2629.7,2629.6,7.64319507]
[1727196685081,0.0378395,2629.7,2629.6,13.33022507]
[1727196685378,0.0378395,2629.7,2629.6,13.25418]
[1727196686862,0.0378395,2630.4,2629.6,13.25418]
[1727196686863,0.0378395,2630.4,2630.1,3.802]
[1727196687064,0.0378395,2630.4,2630.1,7.60404]
[1727196687365,0.0378395,2630.4,2629.6,0.7643]
[1727196687565,3.80221,2630.1,2629.6,0.7643]
[1727196687765,3.80221,2630.1,2629.5,7.41]
[1727196687966,3.80243,2629.9,2629.4,4.56743]
[1727196688337,3.80229,2630.0,2629.4,0.7643]
[1727196688545,3.80229,2630.0,2629.5,3.80298]
[1727196689554,4.56274,2630.0,2629.5,3.80298]
[1727196689752,3.80251,2629.9,2629.4,3.7643]
[1727196689953,0.76045,2630.0,2629.4,0.7643]
[1727196690181,3.80224,2630.1,2629.5,3.80292]
[1727196690384,0.35922206,2630.4,2629.1,3.17598611]
[1727196690385,0.0378395,2630.4,2629.9,3.80231]
[1727196690675,0.0378395,2630.4,2629.9,7.60464]
[1727196690899,0.0378395,2630.4,2629.9,3.80231]
[1727196691040,0.0378395,2630.4,2630.0,3.80227]
[1727196691245,0.0378395,2630.4,2629.9,3.80231]
[1727196691246,0.0378395,2630.4,2629.9,7.60465]
[1727196691437,0.0378395,2630.4,2629.9,7.60464]
[1727196691658,0.0378395,2630.4,2629.9,3.8783533]
[1727196691854,0.0378395,2630.4,2629.9,3.80231]
[1727196692057,0.0378395,2630.4,2630.1,3.80206]
[1727196693664,0.0378395,2630.4,2630.1,3.80205]
[1727196693857,0.0378395,2630.4,2630.1,3.0]
[1727196694061,0.0378395,2630.4,2630.2,3.80198]
[1727196695204,0.0378395,2630.4,2630.0,3.8022]
[1727196695205,0.0378395,2630.4,2630.0,3.80218]
[1727196695579,3.8395595,2630.4,2629.9,3.0]
[1727196695779,7.6413395,2630.4,2629.9,3.0]
[1727196695995,3.80186,2630.3,2629.9,3.0]
[1727196696197,3.802,2630.2,2629.8,0.7643]
[1727196697207,3.80208,2630.2,2629.8,0.7643]
[1727196697578,0.83,2630.2,2629.5,3.0]
[1727196698077,7.60495,2629.9,2629.5,3.0]
[1727196698283,3.80278,2629.7,2629.3,3.0]
[1727196698609,7.60589,2629.6,2629.1,3.80357]
[1727196698793,3.80291,2629.6,2629.1,3.80357]
[1727196700394,7.60588,2629.6,2629.1,3.80357]
[1727196700907,3.80291,2629.6,2629.1,3.80357]
[1727196701115,7.60587,2629.6,2629.1,3.80357]
[1727196701271,3.80291,2629.6,2629.0,3.802]
[1727196701472,3.80315,2629.4,2629.0,7.60572]
[1727196701797,3.80291,2629.6,2629.1,3.80355]
[1727196701980,3.803,2629.5,2629.0,7.60571]
[1727196702172,3.80321,2629.4,2629.0,3.802]
[1727196702375,3.803,2629.5,2629.0,6.80362]
[1727196703711,3.80323,2629.4,2629.0,3.0]
[1727196704220,3.803,2629.5,2629.0,6.80369]
[1727196704574,4.63282,2629.7,2628.8,3.802]
[1727196704575,3.80315,2629.4,2628.8,3.802]
[1727196704876,3.80321,2629.4,2629.0,3.0]
[1727196705078,3.80336,2629.3,2628.9,3.0]
[1727196706537,3.80336,2629.3,2628.9,6.80385]
[1727196706693,3.80316,2629.4,2628.9,6.80385]
[1727196707018,3.80302,2629.5,2629.0,3.80363]
[1727196707213,3.80233,2630.0,2629.3,3.8303]
[1727196707214,3.80253,2629.9,2629.3,3.8303]
[1727196707412,3.80253,2629.9,2629.5,3.80297]
[1727196707630,4.55833,2630.3,2629.7,3.80257]
[1727196707921,4.55833,2630.3,2629.5,3.17598611]
[1727196707922,8.36028,2630.3,2629.8,4.63286]
[1727196708074,3.80199,2630.2,2629.8,4.63286]
[1727196708273,3.80203,2630.2,2629.8,4.63286]
[1727196708715,0.7564,2630.3,2629.8,0.8303]
[1727196708874,3.80222,2630.1,2629.6,7.60561]
[1727196709076,3.80222,2630.1,2629.6,3.80278]
[1727196709275,3.8012746,2630.1,2629.6,3.80278]
[1727196709712,3.8012746,2630.1,2629.6,7.60556]
[1727196709885,3.8012746,2630.1,2629.6,3.80278]
[1727196710297,4.55832,2630.3,2629.6,3.80278]
[1727196710895,3.80215,2630.1,2629.6,3.80278]
[1727196711123,3.80238,2630.0,2629.5,3.8303]
[1727196711297,3.80238,2630.0,2629.6,3.0]
[1727196712189,0.0378395,2630.4,2630.1,3.80212]
[1727196712387,0.0378395,2630.4,2630.1,0.8303]
[1727196713789,0.0378395,2630.4,2630.2,3.80191]
[1727196714599,0.0378395,2630.4,2630.1,0.8303]
[1727196714804,0.0378395,2630.4,2630.1,4.63241]
[1727196715011,0.0378395,2630.4,2630.1,0.8303]
[1727196715191,0.0378395,2630.4,2630.0,3.0]
[1727196715390,0.0378395,2630.4,2630.0,6.80225]
[1727196716997,0.0378395,2630.4,2629.9,7.63271]
[1727196717630,3.8395495,2630.4,2629.9,7.63271]
[1727196717799,3.80186,2630.3,2629.9,3.0]
[1727196718432,3.8395495,2630.4,2629.9,6.80242]
[1727196720442,7.6413795,2630.4,2629.9,6.80242]
[1727196720740,0.85145175,2630.3,2629.6,0.8303]
[1727196720955,3.80206,2630.2,2629.6,3.8303]
[1727196721114,4.60378745,2630.4,2629.8,3.80256]
[1727196721115,0.0378395,2630.4,2629.8,3.80256]
[1727196721439,0.0378395,2630.4,2630.0,0.8303]
[1727196722024,0.0378395,2630.4,2630.1,3.87807675]
[1727196722233,0.0378395,2630.4,2630.1,3.80204]
[1727196722599,0.0378395,2630.4,2630.0,4.63244]
[1727196723002,0.0378395,2630.4,2629.6,3.80284]
[1727196723003,0.794,2630.3,2629.7,3.0]
[1727196723301,3.8396295,2630.4,2629.9,3.80235]
[1727196724298,3.80186,2630.3,2629.8,3.80249]
[1727196724622,3.8395595,2630.4,2629.9,3.80233]
[1727196724946,3.8395595,2630.4,2629.8,3.80249]
[1727196725109,3.80192,2630.3,2629.8,3.80249]
[1727196726748,7.6413795,2630.4,2629.9,3.80236]
[1727196727242,3.8395595,2630.4,2629.9,3.80236]
[1727196727610,3.8395595,2630.4,2629.9,7.60466]
[1727196727815,3.8395595,2630.4,2629.9,3.80233]
[1727196728020,0.0378395,2630.4,2629.9,3.80233]
[1727196728349,0.0378395,2630.4,2630.0,0.8294]
[1727196728644,0.0378395,2630.4,2630.1,3.8021]
[1727196730342,0.0378395,2630.4,2630.0,0.8294]
[1727196730546,3.80186,2630.3,2629.9,3.80233]
[1727196731402,4.59930172,2630.3,2629.9,3.80233]
[1727196731604,4.59607,2630.2,2629.7,3.80262]
[1727196731841,0.794,2630.2,2629.6,0.8294]
[1727196732148,3.80285,2629.6,2629.5,0.35420054]
[1727196733218,0.794,2629.7,2629.5,0.35420054]
[1727196733553,4.60002172,2629.8,2629.5,0.35420054]
[1727196733554,3.80258,2629.8,2629.5,0.35420054]
[1727196734044,5.39382172,2630.0,2629.5,0.35420054]
[1727196734045,3.80271,2629.7,2629.5,0.35420054]
[1727196734247,4.59995172,2629.9,2629.5,0.35420054]
[1727196734429,3.80251,2629.9,2629.5,0.35420054]
[1727196734827,3.80251,2629.9,2629.4,3.80305]
[1727196735030,0.794,2630.0,2629.5,3.80289]
[1727196735248,0.79744172,2630.2,2629.6,0.8294]
[1727196735416,0.79744172,2630.2,2629.6,4.63212]
[1727196735866,3.80196,2630.3,2629.6,4.63224]
[1727196735867,3.80214,2630.1,2629.6,4.63224]
[1727196736169,4.59937172,2630.3,2629.8,3.80256]
[1727196736371,4.63698122,2630.4,2629.8,3.80246]
[1727196736718,4.63698122,2630.4,2630.0,4.63167]
[1727196736719,0.0378395,2630.4,2630.0,4.63167]
[1727196736868,0.0378395,2630.4,2630.0,0.8294]
[1727196737025,3.8396095,2630.4,2630.0,0.8294]
[1727196737964,0.0378395,2630.4,2630.0,4.63167]
[1727196738268,0.0378395,2630.4,2630.0,8.43394]
[1727196738435,0.0378395,2630.4,2630.1,3.80206]
[1727196738639,0.0378395,2630.4,2630.0,4.63167]
[1727196739734,3.8396595,2630.4,2630.0,0.8294]
[1727196740051,5.60058999,2630.4,2629.9,3.80235]
[1727196740235,3.80228,2630.0,2629.5,0.8294]
[1727196740451,3.80228,2630.0,2629.6,3.80283]
[1727196740652,0.79744172,2630.2,2629.7,3.80261]
[1727196740882,5.39330172,2630.3,2629.8,3.80249]
[1727196741089,4.59586,2630.3,2629.8,3.80249]
[1727196741259,0.794,2630.3,2629.9,3.80229]
[1727196741453,0.0378395,2630.4,2630.0,0.8294]
[1727196741653,0.0378395,2630.4,2630.0,4.63156]
[1727196742489,0.83528122,2630.4,2630.0,4.63156]
[1727196742689,0.0378395,2630.4,2630.0,4.63156]
[1727196742858,1.87813599,2630.4,2629.7,3.80262]
[1727196743192,3.80222,2630.1,2629.6,7.63222]
[1727196743549,3.80221,2630.1,2629.6,7.63222]
[1727196743751,4.59634,2630.0,2629.4,3.80304]
[1727196743949,3.80242,2629.9,2629.4,3.80304]
[1727196744202,3.80242,2629.9,2629.3,0.8294]
[1727196744448,0.794,2630.0,2629.5,3.80292]
[1727196744794,3.80222,2630.1,2629.5,3.80292]
[1727196744942,0.79744172,2630.2,2629.7,3.80267]
[1727196745149,1.23404603,2630.4,2629.7,3.80267]
[1727196745150,4.59929172,2630.3,2629.7,3.80267]
[1727196745453,3.80185,2630.3,2629.9,3.8024]
[1727196745992,3.80185,2630.3,2629.8,3.80254]
[1727196746193,4.59929172,2630.3,2629.8,3.80254]
[1727196746382,3.80199,2630.2,2629.7,3.80267]
[1727196746692,3.80199,2630.2,2629.7,3.80262]
[1727196746890,3.80199,2630.2,2629.8,3.80257]
[1727196748380,4.59929172,2630.3,2629.8,3.80257]
[1727196748770,3.80199,2630.2,2629.8,3.80257]
[1727196749110,4.59929172,2630.3,2629.8,3.80257]
[1727196749311,7.60381,2630.3,2629.8,3.80257]
[1727196749470,8.40125172,2630.3,2629.8,3.80257]
[1727196751759,4.59945172,2630.2,2629.8,3.80257]
[1727196752417,0.0378395,2630.4,2630.3,3.80184]
[1727196752628,0.83528122,2630.4,2630.3,4.55774]
[1727196752805,0.0378395,2630.4,2630.3,10.73372611]
[1727196754280,0.0378395,2630.4,2630.3,7.55774]
[1727196757002,0.0378395,2630.4,2630.2,3.0]
[1727196757237,0.0378395,2630.4,2630.1,6.80205]
[1727196759915,0.0378395,2630.4,2630.0,4.55806]
[1727196760452,0.0378395,2630.4,2630.1,3.80212]
[1727196761008,0.0378395,2630.4,2630.2,3.80195]
[1727196761258,0.0378395,2630.4,2630.3,3.80184]
[1727196763009,0.0378395,2630.4,2630.1,3.80199]
[1727196763406,0.0378395,2630.4,2630.2,3.0]
[1727196763846,0.0378395,2630.4,2630.1,3.0]
[1727196764034,0.0378395,2630.4,2630.2,3.80198]
[1727196765224,0.0378395,2630.4,2630.1,3.0]
[1727196765430,0.0378395,2630.4,2629.5,0.52407756]
[1727196765431,4.6076595,2630.4,2629.8,7.55837]
[1727196765754,4.6076595,2630.4,2630.0,3.0]
[1727196766457,3.80184,2630.3,2630.0,3.0]
[1727196766924,3.80184,2630.3,2629.9,3.80235]
[1727196767329,3.80184,2630.3,2629.8,4.55837]
[1727196767514,3.80184,2630.3,2629.9,3.0]
[1727196767947,4.59928172,2630.3,2629.9,3.0]
[1727196768312,4.59928172,2630.3,2629.9,6.80241]
[1727196768521,4.59928172,2630.3,2629.9,3.0]
[1727196769063,3.80184,2630.3,2629.9,3.0]
[1727196769550,4.59928172,2630.3,2629.9,3.0]
[1727196770116,3.80184,2630.3,2629.9,3.0]
[1727196770426,3.80207,2630.2,2629.7,6.8027]
[1727196771865,0.0378395,2630.4,2630.3,3.80184]
[1727196772164,0.0378395,2630.4,2630.3,7.32591756]
[1727196772331,0.0378395,2630.4,2630.3,6.80184]
[1727196775060,0.0378395,2630.4,2630.3,12.130108]
[1727196776567,0.0378395,2630.4,2630.3,7.56334]
[1727196779575,0.0378395,2630.4,2630.3,6.80184]
[1727196781674,0.0378395,2630.4,2630.1,3.0]
[1727196781895,0.0378395,2630.4,2630.3,3.80184]
[1727196782056,0.0378395,2630.4,2630.3,6.80184]
[1727196782376,0.0378395,2630.4,2630.3,7.58814]
[1727196787202,0.83528122,2631.2,2630.4,3.7863]
[1727196787203,0.0378395,2631.2,2630.4,3.7863]
[1727196787485,0.0378395,2631.2,2631.1,10.76297611]
[1727196787806,0.0378395,2631.2,2631.1,31.93217909]
[1727196787985,0.0378395,2631.2,2631.1,31.27479109]
[1727196788523,0.8181,2632.5,2631.9,3.79953]
[1727196788671,4.61685,2632.5,2631.9,3.79953]
[1727196789571,8.41561,2632.5,2631.9,3.79953]
[1727196789770,3.79883,2632.4,2631.9,3.79953]
[1727196789997,3.79883,2632.4,2631.8,3.79959]
[1727196790890,0.79744172,2632.7,2630.9,3.0]
[1727196790891,4.6554195,2632.0,2630.9,3.0]
[1727196791076,4.6554195,2632.0,2631.5,3.80003]
[1727196791270,4.6554195,2632.0,2631.3,3.7863]
[1727196791271,4.6554195,2632.0,2631.4,3.80017]
[1727196791575,4.6554195,2632.0,2631.5,3.0]
[1727196791829,3.79954,2631.9,2631.5,3.0]
[1727196792626,3.79955,2631.9,2631.3,3.0]
[1727196792777,3.79993,2631.7,2631.1,3.80057]
[1727196793279,7.59987,2631.7,2631.1,3.80057]
[1727196794121,7.59987,2631.7,2631.2,3.0]
[1727196794620,3.80001,2631.6,2631.2,3.0]
[1727196795922,4.61774,2631.9,2631.2,6.80051]
[1727196796127,4.61774,2631.9,2631.6,3.79991]
[1727196796128,0.8181,2631.9,2631.6,3.79991]
[1727196796279,0.0378395,2632.0,2631.7,0.07598825]
[1727196796476,0.0378395,2632.0,2631.6,3.79991]
[1727196796887,0.0378395,2632.0,2631.8,3.79961]
[1727196797402,0.0378395,2632.0,2631.9,3.79953]
[1727196797604,0.0378395,2632.0,2631.9,3.0]
[1727196797801,0.0378395,2632.0,2631.8,3.0]
[1727196798203,0.8559395,2632.0,2631.7,3.0]
[1727196798404,4.6553295,2632.0,2631.6,3.0]
[1727196799114,4.6553295,2632.0,2631.5,6.80003]
[1727196799676,0.8559395,2632.0,2631.7,3.0]
[1727196800432,0.8559395,2632.0,2631.7,6.79975]
[1727196800801,0.0378395,2632.0,2631.8,3.79957]
[1727196801012,0.0378395,2632.0,2631.9,3.79953]
[1727196801206,0.0378395,2632.0,2631.9,7.58583]
[1727196803349,0.0378395,2632.0,2631.9,6.79953]
[1727196803847,0.0378395,2632.0,2631.7,3.0]
[1727196804148,0.0378395,2632.0,2631.7,6.79982]
[1727196804693,0.0378395,2632.0,2631.8,3.79962]
[1727196804891,0.0378395,2632.0,2631.9,3.0]
[1727196805897,4.6554095,2632.0,2631.6,3.0]
[1727196806118,3.7996,2631.9,2631.6,3.0]
[1727196806313,3.7996,2631.9,2631.5,3.0]
[1727196806604,3.7996,2631.9,2631.4,4.58655]
[1727196806605,3.79968,2631.8,2631.4,3.80025]
[1727196806993,3.79985,2631.7,2631.3,3.80039]
[1727196807192,3.79981,2631.8,2631.3,3.80039]
[1727196807397,3.79981,2631.8,2631.4,0.52064298]
[1727196807594,3.79953,2631.9,2631.4,0.52064298]
[1727196808249,0.8559395,2632.0,2631.4,0.52064298]
[1727196808556,4.6553395,2632.0,2631.5,3.8]
[1727196808927,4.6553395,2632.0,2631.6,3.79993]
[1727196808928,0.8559395,2632.0,2631.6,3.79993]
[1727196809310,4.6553395,2632.0,2631.5,3.8]
[1727196810157,0.0378395,2632.0,2631.7,3.79974]
[1727196810315,0.0378395,2632.0,2631.9,3.79953]
[1727196811526,0.0378395,2632.0,2631.9,7.39614593]
[1727196811882,0.0378395,2632.0,2631.9,7.32017298]
[1727196812217,0.0378395,2632.0,2631.9,6.79953]
[1727196812620,0.0378395,2632.0,2631.9,18.597436]
[1727196813756,0.0378395,2632.0,2631.9,18.349631]
[1727196814055,0.0378395,2632.0,2631.9,16.214134]
[1727196818063,0.0378395,2632.0,2631.9,7.59403]
[1727196818364,0.0378395,2632.0,2631.9,11.324131]
[1727196819951,0.0378395,2632.0,2631.9,19.86564]
[1727196820342,0.0378395,2632.0,2631.9,20.38628298]
[1727196820934,0.0378395,2632.0,2631.9,8.11467298]
[1727196829255,0.0378395,2632.8,2632.7,4.56168]
[1727196829467,1.23120653,2633.2,2633.1,8.1111]
[1727196829468,0.035,2633.2,2633.1,8.1111]
[1727196829658,0.035,2633.2,2633.1,15.659004]
[1727196829854,0.035,2633.2,2633.1,10.229642]
[1727196830195,0.035,2633.2,2633.1,10.779642]
[1727196830347,0.035,2633.2,2633.1,12.17605171]
[1727196830547,0.035,2633.2,2633.1,13.46477124]
[1727196830749,0.035,2633.2,2633.1,10.229642]
[1727196831969,0.035,2633.2,2633.1,6.7978]
[1727196832178,0.035,2633.2,2633.1,10.773799]
[1727196832562,0.035,2633.2,2633.1,14.011799]
[1727196832761,0.035,2633.2,2633.1,10.773799]
[1727196833246,0.035,2633.2,2633.1,6.7978]
[1727196835246,0.035,2633.2,2633.1,6.87373762]
[1727196835448,0.035,2633.2,2633.1,6.7978]
[1727196836764,0.035,2633.2,2633.1,3.7978]
[1727196838162,0.035,2633.2,2633.1,3.0]
[1727196838357,0.035,2633.2,2633.1,3.7978]
[1727196838585,0.035,2633.2,2633.0,7.59579]
[1727196838792,0.7972,2633.2,2633.0,7.59579]
[1727196839269,0.7972,2633.2,2633.1,3.7978]
[1727196840492,0.7972,2633.2,2633.0,3.79786]
[1727196841354,0.7972,2633.2,2633.0,7.59569]
[1727196841606,0.7972,2633.2,2633.1,10.73708611]
[1727196841607,0.035,2633.2,2633.1,10.73708611]
[1727196841809,0.035,2633.2,2633.1,23.94978511]
[1727196842096,0.035,2633.2,2633.1,24.48702643]
[1727196843555,0.035,2633.2,2633.1,25.03702643]
[1727196846501,0.0008,2633.4,2633.3,8.12681]
[1727196846677,0.0008,2633.4,2633.3,30.87453611]
[1727196846873,0.0008,2633.4,2633.3,23.80521211]
[1727196847407,0.0008,2633.4,2633.3,24.34245343]
[1727196847615,0.0008,2633.4,2633.3,24.89245343]
[1727196848498,0.0008,2633.4,2633.3,24.34245343]
[1727196848713,0.0008,2633.4,2633.3,24.89245343]
[1727196849434,0.0378395,2633.6,2633.5,3.79722]
[1727196849632,0.0378395,2633.6,2633.5,21.27219809]
[1727196849921,0.0378395,2633.6,2633.5,10.49711409]
[1727196850994,0.0378395,2633.6,2633.5,30.76242509]
[1727196851212,0.0378395,2633.6,2633.5,18.02077809]
[1727196853127,0.0378395,2633.6,2633.5,18.80007809]
[1727196853311,0.0378395,2633.6,2633.5,19.73117809]
[1727196855191,0.0378395,2634.4,2634.3,3.79607]
[1727196855392,0.0378395,2634.4,2634.3,11.30135611]
[1727196856302,0.0378395,2634.4,2634.3,48.60553309]
[1727196856636,12.29,2636.4,2634.3,48.60553309]
[1727196856637,0.7864395,2635.8,2635.3,3.79453]
[1727196856846,0.0279983,2636.0,2635.4,3.17598611]
[1727196857114,0.0279983,2636.0,2635.5,6.79425]
[1727196857276,0.0279983,2636.0,2635.8,3.55]
[1727196857473,0.0279983,2636.0,2635.9,9.96975611]
[1727196857760,0.0279983,2636.0,2635.6,3.79417]
[1727196857968,0.0279983,2636.0,2635.2,0.7793]
[1727196857969,0.0279983,2636.0,2635.5,3.79421]
[1727196858153,0.0279983,2636.0,2635.7,3.79396]
[1727196858326,0.0279983,2636.0,2635.8,3.0]
[1727196858530,0.0279983,2636.0,2635.6,3.79407]
[1727196858926,0.0279983,2636.0,2635.9,3.79377]
[1727196859172,0.0279983,2636.0,2635.7,3.17598611]
[1727196859461,0.0279983,2636.0,2635.7,6.96993611]
[1727196859668,0.8265983,2636.0,2635.7,6.96993611]
[1727196859823,0.8265983,2636.0,2635.7,10.76390611]
[1727196860023,0.0279983,2636.0,2635.9,3.79377]
[1727196860221,0.0279983,2636.0,2635.9,9.579871]
[1727196860449,0.0279983,2636.0,2635.9,12.644064]
[1727196861695,0.0279983,2636.0,2635.9,30.77421311]
[1727196861888,0.0279983,2636.0,2635.9,13.51875611]
[1727196862191,0.0279983,2636.0,2635.9,6.79377]